bitfinex-derivatives/quotes_ETHF0:USTF0_20251005
["timestamp","ask_amount","ask_price","bid_price","bid_amount"]
[1759681376011,0.5399,4536.8,4536.7,2.18716709]
[1759681378510,0.3141,4536.8,4536.7,2.18716709]
[1759681378710,0.00159725,4537.5,4537.4,0.83898]
[1759681378919,0.00159725,4537.5,4537.4,1.39418]
[1759681379414,0.54149725,4537.5,4537.4,0.9976]
[1759681379616,0.54149725,4537.5,4537.4,0.7766]
[1759681379819,0.75549725,4537.5,4537.4,0.9976]
[1759681383720,0.88299725,4537.5,4537.4,0.9976]
[1759681385125,0.88299725,4537.5,4537.4,0.7766]
[1759681385312,0.88299725,4537.5,4537.4,0.9976]
[1759681388422,0.00159725,4537.5,4537.4,0.9976]
[1759681388622,0.31569725,4537.5,4537.4,0.9976]
[1759681388825,0.54149725,4537.5,4537.4,0.9976]
[1759681390419,0.75549725,4537.5,4537.4,0.9976]
[1759681391326,0.75549725,4537.5,4537.4,0.7766]
[1759681391529,0.75549725,4537.5,4537.4,0.9976]
[1759681393420,0.00159725,4537.5,4537.4,0.9976]
[1759681393625,0.00159725,4537.5,4537.4,1.39418]
[1759681402426,0.00159725,4537.5,4537.4,4.60198]
[1759681405629,0.00159725,4537.5,4537.4,5.39481497]
[1759681406638,0.00159725,4537.5,4537.4,4.60198]
[1759681412337,0.00159725,4537.5,4537.4,5.78872438]
[1759681417342,0.00159725,4537.5,4537.4,10.78872438]
[1759681421941,0.00159725,4537.5,4537.4,7.58092438]
[1759681422148,0.00159725,4537.5,4537.4,10.78872438]
[1759681422347,0.00159725,4537.5,4537.4,5.78872438]
[1759681422748,0.00159725,4537.5,4537.4,4.60198]
[1759681430750,0.00159725,4537.5,4537.4,4.38098]
[1759681431052,0.00159725,4537.5,4537.4,4.60198]
[1759681431751,0.00159725,4537.5,4537.4,4.38098]
[1759681432046,0.00159725,4537.5,4537.4,4.60198]
[1759681432647,0.53869725,4537.5,4537.4,4.60198]
[1759681433048,0.00159725,4537.5,4537.4,4.60198]
[1759681440555,0.75849725,4537.5,4537.4,4.60198]
[1759681441256,0.53869725,4537.5,4537.4,4.60198]
[1759681441452,0.00159725,4537.5,4537.4,4.60198]
[1759681445755,0.00159725,4537.5,4537.4,4.38098]
[1759681445957,0.00159725,4537.5,4537.4,4.60198]
[1759681446156,0.53869725,4537.5,4537.4,4.38098]
[1759681446453,0.53869725,4537.5,4537.4,4.60198]
[1759681446757,0.75849725,4537.5,4537.4,4.60198]
[1759681448154,0.75849725,4537.5,4537.4,4.38098]
[1759681448361,0.88319725,4537.5,4537.4,4.60198]
[1759681449655,0.88319725,4537.5,4537.4,0.62098]
[1759681449861,0.88319725,4537.5,4537.4,0.84198]
[1759681450657,5.88319725,4537.5,4537.4,0.84198]
[1759681451455,5.88319725,4537.5,4537.4,0.61758]
[1759681453147,5.56969725,4537.5,4537.2,1.18774023]
[1759681453353,0.7569,4537.3,4537.2,0.3966]
[1759681453658,0.7569,4537.3,4537.2,0.6176]
[1759681454260,0.7569,4537.3,4537.2,1.62714127]
[1759681454560,0.7569,4537.3,4537.2,1.95294127]
[1759681456560,0.7569,4537.3,4537.2,1.55634127]
[1759681457156,0.7569,4537.3,4537.2,1.33534127]
[1759681457360,0.4527,4537.0,4536.8,0.79114127]
[1759681457560,1.13884,4536.7,4536.6,0.221]
[1759681459559,0.73766,4536.5,4536.4,0.2093]
[1759681459764,1.26846,4536.5,4536.4,0.221]
[1759681460957,1.26846,4536.5,4536.4,0.4303]
[1759681462263,1.26846,4536.5,4536.4,0.221]
[1759681462660,0.71979,4536.1,4536.0,0.79114127]
[1759681462967,0.8718,4536.0,4535.9,1.72721288]
[1759681463169,0.8718,4536.0,4535.9,0.221]
[1759681463467,1.2685,4536.0,4535.9,0.221]
[1759681463768,0.8718,4536.0,4535.9,0.4303]
[1759681463956,0.8718,4536.0,4535.9,0.7624]
[1759681465760,0.8718,4536.0,4535.9,1.15911]
[1759681466570,0.8718,4536.0,4535.9,0.7624]
[1759681467768,0.8718,4536.0,4535.9,1.15911]
[1759681468161,0.7422,4536.0,4535.9,1.37711]
[1759681468871,0.7422,4536.0,4535.9,3.14487192]
[1759681469575,0.7422,4536.0,4535.9,2.52716192]
[1759681469765,0.8718,4536.0,4535.9,2.74816192]
[1759681471570,1.2685,4536.0,4535.9,2.74816192]
[1759681472367,1.2685,4536.0,4535.9,2.41606192]
[1759681472763,1.2685,4536.0,4535.9,0.6483]
[1759681473062,0.7488,4535.7,4535.6,0.2148]
[1759681473259,0.7488,4535.7,4535.6,0.4358]
[1759681473463,1.14553,4535.7,4535.6,0.7548]
[1759681473769,1.14553,4535.7,4535.6,0.221]
[1759681476568,1.14553,4535.7,4535.6,0.4358]
[1759681476767,1.14553,4535.7,4535.6,0.7548]
[1759681478973,0.7488,4535.7,4535.6,0.7548]
[1759681479273,0.7488,4535.7,4535.6,0.5358]
[1759681479476,0.83476,4535.3,4535.2,0.2148]
[1759681479775,0.83476,4535.3,4535.2,0.4358]
[1759681479968,1.14556,4535.3,4535.2,0.4358]
[1759681485566,1.14556,4535.3,4535.2,0.7548]
[1759681486772,1.14556,4535.3,4535.2,0.5338]
[1759681487273,1.14556,4535.3,4535.2,0.2148]
[1759681487671,1.14556,4535.3,4535.2,0.5251]
[1759681495480,1.14556,4535.3,4535.0,0.221]
[1759681495481,0.39678,4535.1,4535.0,0.221]
[1759681495675,0.2124,4535.0,4534.9,0.79114127]
[1759681495881,0.8844,4535.0,4534.9,1.22314127]
[1759681496081,0.8844,4535.0,4534.9,1.53344127]
[1759681496283,0.8844,4535.0,4534.9,1.75894127]
[1759681496483,1.28119,4535.0,4534.9,1.00214127]
[1759681496685,1.28119,4535.0,4534.9,0.79114127]
[1759681496885,0.96529,4535.0,4534.8,1.01214127]
[1759681497187,0.7524,4534.9,4534.8,0.7423]
[1759681498089,0.7524,4534.9,4534.8,1.36461]
[1759681498284,0.5283,4534.9,4534.8,1.36461]
[1759681502696,0.5283,4535.2,4535.1,0.7468]
[1759681502988,0.3159,4535.4,4535.1,0.4365]
[1759681503193,3.2078,4535.7,4535.6,0.7468]
[1759681503495,3.2078,4535.7,4535.6,1.36454]
[1759681504099,3.7361,4535.7,4535.6,0.9678]
[1759681504701,3.2078,4535.7,4535.6,0.9678]
[1759681504898,3.2078,4535.7,4535.6,1.36454]
[1759681505099,0.71261,4535.9,4535.6,1.36454]
[1759681505293,0.3159,4535.8,4535.7,0.3103]
[1759681505597,0.5283,4535.8,4535.7,0.7468]
[1759681506803,0.5283,4535.8,4535.7,1.14353]
[1759681509001,0.2124,4536.0,4535.9,0.39671]
[1759681509203,0.5283,4536.0,4535.9,1.84617925]
[1759681509396,0.5283,4536.0,4535.9,1.05421]
[1759681509597,0.5283,4536.0,4535.9,1.36451]
[1759681509797,0.5283,4536.0,4535.9,0.9678]
[1759681509998,0.925,4536.0,4535.9,0.9678]
[1759681510300,1.1491,4536.0,4535.9,0.9678]
[1759681512008,1.2811,4536.0,4535.9,0.9678]
[1759681512602,1.2811,4536.0,4535.9,0.432]
[1759681512807,1.2811,4536.0,4535.9,0.221]
[1759681513707,0.8844,4536.0,4535.9,0.221]
[1759681513903,0.8844,4536.0,4535.9,0.7423]
[1759681515808,1.2811,4536.0,4535.9,0.432]
[1759681517506,1.2811,4536.0,4535.9,0.741]
[1759681518311,1.2811,4536.0,4535.9,0.432]
[1759681519808,0.2154,4535.7,4535.6,0.79196925]
[1759681520009,0.2154,4535.7,4535.0,0.1341]
[1759681520010,0.39676,4535.3,4535.2,0.79196925]
[1759681520212,1.15426,4535.3,4535.2,0.79196925]
[1759681523914,0.7575,4535.3,4535.2,1.52526925]
[1759681524118,0.7575,4535.3,4535.2,1.92203925]
[1759681526321,0.7575,4535.3,4535.2,1.52526925]
[1759681526616,0.7575,4535.3,4535.2,0.7333]
[1759681527814,0.7575,4535.3,4535.2,1.52526925]
[1759681528318,0.7575,4535.3,4535.2,0.7333]
[1759681529120,0.7575,4535.3,4535.2,1.13007]
[1759681529320,0.7575,4535.3,4535.2,1.52526925]
[1759681529514,0.7575,4535.3,4535.2,1.92203925]
[1759681529709,0.7575,4535.3,4535.2,1.52526925]
[1759681530111,1.15426,4535.3,4535.2,1.52526925]
[1759681531022,1.15426,4535.3,4535.2,0.79196925]
[1759681531219,1.15427,4535.2,4535.1,0.2185]
[1759681531423,0.8823,4535.0,4534.9,1.53953877]
[1759681533026,0.8823,4535.0,4534.9,1.74533877]
[1759681533320,0.7575,4535.0,4534.9,2.14213877]
[1759681534019,0.541,4535.0,4534.9,2.14213877]
[1759681534517,3.5202,4535.5,4535.1,0.39678]
[1759681534722,4.12085,4535.5,4535.4,0.4295]
[1759681535124,4.33035,4535.5,4535.4,0.759]
[1759681539326,3.7241,4535.5,4535.4,1.15575]
[1759681539515,3.4117,4535.5,4535.4,1.15575]
[1759681540120,3.7241,4535.5,4535.4,1.15575]
[1759681542020,0.5163,4535.5,4535.4,1.15575]
[1759681543426,0.5163,4535.5,4535.4,0.759]
[1759681543427,1.12255,4535.5,4535.4,0.759]
[1759681543626,1.25135,4535.5,4535.4,0.759]
[1759681549832,0.8546,4535.5,4535.4,0.759]
[1759681551835,1.25135,4535.5,4535.4,0.759]
[1759681552226,1.25135,4535.5,4535.3,0.79103877]
[1759681552227,0.83347,4535.2,4535.1,0.79103877]
[1759681552535,0.8878,4535.0,4534.9,0.79103877]
[1759681552729,0.3242,4534.9,4534.8,0.83101]
[1759681552934,0.7609,4534.9,4534.8,1.13631]
[1759681553837,0.7609,4534.9,4534.8,1.34141]
[1759681556934,0.7609,4534.9,4534.8,0.9446]
[1759681557137,0.7609,4534.9,4534.8,1.34141]
[1759681560037,0.7609,4534.9,4534.8,0.9446]
[1759681560236,1.1577,4534.9,4534.8,0.9446]
[1759681561337,0.7609,4534.9,4534.8,0.9446]
[1759681561931,1.1577,4534.9,4534.8,0.9446]
[1759681562127,0.7609,4534.9,4534.8,1.34141]
[1759681565734,0.3242,4535.3,4534.9,0.992]
[1759681565941,0.3242,4535.3,4535.2,1.12037]
[1759681565942,0.5392,4535.3,4535.2,1.12037]
[1759681566238,0.7609,4535.3,4535.2,1.12037]
[1759681566935,0.7609,4535.3,4535.2,1.34137]
[1759681567844,0.5392,4535.3,4535.2,1.34137]
[1759681568037,0.5392,4535.7,4535.6,1.12033]
[1759681568242,0.215,4535.7,4535.6,1.34133]
[1759681572135,0.5392,4535.9,4535.8,1.12032]
[1759681572340,0.5392,4535.9,4535.8,1.34132]
[1759681573242,0.5392,4535.9,4535.8,0.9446]
[1759681573437,0.5392,4535.9,4535.8,1.34132]
[1759681575349,0.215,4536.1,4536.0,0.39669]
[1759681575648,0.7609,4536.1,4536.0,0.81499]
[1759681575847,0.7609,4536.1,4536.0,1.12029]
[1759681576346,0.5392,4536.1,4536.0,1.24879]
[1759681578157,3.5331,4536.4,4536.0,0.5468]
[1759681578449,3.57292078,4536.3,4536.2,0.3272]
[1759681578643,3.57292078,4536.3,4536.2,0.5467]
[1759681580650,3.57292078,4536.3,4536.2,1.15848]
[1759681581150,3.57292078,4536.3,4536.2,0.7618]
[1759681581842,0.5382,4536.3,4536.2,1.15848]
[1759681582155,0.2129,4536.3,4536.2,1.15848]
[1759681583351,0.5382,4536.3,4536.2,1.15848]
[1759681583553,0.7558,4536.3,4536.2,0.7618]
[1759681584555,0.7558,4536.3,4536.2,1.15848]
[1759681584743,0.7558,4536.3,4536.2,0.7618]
[1759681585056,1.15248,4536.3,4536.2,0.7618]
[1759681585255,0.7558,4536.3,4536.2,0.7618]
[1759681585850,0.7558,4536.3,4536.2,1.15848]
[1759681587664,0.7558,4536.3,4536.2,0.83128]
[1759681587852,0.7558,4536.3,4536.2,1.15848]
[1759681591967,3.2078,4536.4,4536.3,0.72388]
[1759681592161,3.2078,4536.4,4536.3,0.94788]
[1759681592367,3.2078,4536.4,4536.3,1.15568]
[1759681593871,0.39665,4536.6,4536.4,0.39666]
[1759681594063,0.3116,4536.5,4536.4,1.14896]
[1759681594264,0.3116,4536.5,4536.4,0.7523]
[1759681594564,0.3116,4536.5,4536.4,1.14897]
[1759681596169,0.5216,4536.5,4536.4,1.14897]
[1759681597363,0.91826,4536.5,4536.4,0.7523]
[1759681597563,0.8662,4536.5,4536.4,0.224]
[1759681598570,0.8662,4536.5,4536.4,0.62067]
[1759681599370,0.8662,4536.5,4536.4,0.94117]
[1759681600874,0.734,4536.5,4536.4,1.14897]
[1759681602274,0.5493,4537.0,4536.9,0.7523]
[1759681602773,0.8609,4537.0,4536.9,0.7523]
[1759681603269,0.8609,4537.0,4536.6,0.3205]
[1759681603475,0.734,4536.7,4536.6,0.5445]
[1759681603669,0.734,4536.7,4536.6,0.94115]
[1759681603874,0.734,4536.7,4536.6,1.14895]
[1759681614579,3.2078,4537.1,4536.6,1.14895]
[1759681614780,0.12849725,4537.5,4537.2,0.3966]
[1759681614984,0.5288,4537.3,4537.2,1.1312]
[1759681617677,0.00159725,4537.5,4537.4,1.13118]
[1759681617883,0.00159725,4537.5,4537.4,1.35218]
[1759681638599,0.00159725,4537.5,4537.4,6.35218]
[1759681640197,0.00159725,4537.5,4537.4,7.14423181]
[1759681642398,0.00159725,4537.5,4537.4,6.35218]
[1759681643405,0.00159725,4537.5,4537.4,7.53992023]
[1759681644908,0.32059725,4537.5,4537.4,7.53992023]
[1759681645205,0.00159725,4537.5,4537.4,7.53992023]
[1759681645506,0.00159725,4537.5,4537.4,6.35218]
[1759681649809,0.00159725,4537.5,4537.4,9.55998]
[1759681652699,0.00159725,4537.5,4537.4,4.55998]
[1759681653904,0.3186,4538.3,4538.2,0.39651]
[1759681654115,0.5246,4538.3,4538.2,2.15654208]
[1759681654907,0.74042561,4538.3,4538.2,1.41090265]
[1759681655810,0.74042561,4538.3,4538.2,1.61530265]
[1759681656012,0.74042561,4538.3,4538.2,1.94980265]
[1759681656411,0.74042561,4538.3,4538.2,1.15827057]
[1759681658914,0.74042561,4538.3,4538.2,1.36687057]
[1759681668523,0.74042561,4538.3,4538.2,2.15840265]
[1759681675329,0.52702561,4538.3,4538.2,2.15840265]
[1759681675631,0.00242561,4538.3,4538.2,1.36687057]
[1759681676736,0.55222561,4538.3,4538.2,1.36687057]
[1759681678438,0.00242561,4538.3,4538.2,1.36687057]
[1759681680845,0.00242561,4538.3,4538.2,4.57467057]
[1759681681141,0.00242561,4538.3,4538.2,5.7619687]
[1759681686244,0.00242561,4538.3,4538.2,4.57467057]
[1759681686448,3.7576,4539.2,4539.1,0.82993]
[1759681686744,3.9654,4539.2,4539.1,1.36133]
[1759681687543,3.96704995,4539.2,4539.1,1.36133]
[1759681690245,3.20944995,4539.2,4539.1,1.36133]
[1759681690640,3.75924995,4539.2,4539.1,1.36133]
[1759681691642,0.55144995,4539.2,4539.1,1.36133]
[1759681694349,0.75924995,4539.2,4539.1,1.36133]
[1759681697849,0.55144995,4539.2,4539.1,1.36133]
[1759681698647,0.55144995,4539.2,4539.1,4.56913]
[1759681699046,0.00164995,4539.2,4539.1,4.56913]
[1759681699251,0.00164995,4539.2,4539.1,5.35910199]
[1759681700347,0.00164995,4539.2,4539.1,4.56913]
[1759681701251,0.00164995,4539.2,4539.1,5.35881829]
[1759681704058,0.00164995,4539.2,4539.1,4.56913]
[1759681710255,0.00164995,4539.2,4539.1,9.56913]
[1759681710650,0.00164995,4539.2,4539.1,9.34813]
[1759681710857,0.00164995,4539.2,4539.1,4.56813]
[1759681712357,0.00164995,4539.2,4539.1,5.75548271]
[1759681713854,0.00164995,4539.2,4539.1,5.53548271]
[1759681714156,0.52394995,4539.2,4539.1,5.75548271]
[1759681714357,0.00164995,4539.2,4539.1,5.75548271]
[1759681720166,0.00164995,4539.2,4539.1,4.56813]
[1759681722571,0.00164995,4539.2,4539.1,4.34813]
[1759681722776,0.00164995,4539.2,4539.1,4.56813]
[1759681725469,0.00164995,4539.2,4539.1,4.34813]
[1759681725770,0.00164995,4539.2,4539.1,4.56813]
[1759681726969,0.73134995,4539.2,4539.1,3.4219]
[1759681727168,5.00164995,4539.2,4539.1,0.82813]
[1759681727374,5.42424995,4539.2,4539.1,1.34883]
[1759681727873,5.75064995,4539.2,4539.1,1.34883]
[1759681736775,6.14706995,4539.2,4539.1,1.34883]
[1759681736976,6.14706995,4539.2,4539.1,2.13873436]
[1759681737476,6.14706995,4539.2,4539.1,1.74230436]
[1759681739271,6.14706995,4539.2,4539.1,1.42610436]
[1759681740178,5.75064995,4539.2,4539.1,1.82253436]
[1759681740380,5.75064995,4539.2,4539.1,2.14153436]
[1759681740874,0.99091,4539.9,4539.1,2.14153436]
[1759681740875,0.39636,4540.0,4539.5,0.1252]
[1759681741074,3.2078,4540.8,4540.1,0.5303]
[1759681741274,0.39633,4540.3,4540.2,0.319]
[1759681741774,3.27273263,4540.3,4540.2,0.319]
[1759681741973,3.27544648,4540.3,4540.2,0.319]
[1759681743380,3.27544648,4540.3,4540.2,0.5303]
[1759681744584,3.27544648,4540.3,4540.2,0.319]
[1759681754289,1.13034,4540.1,4540.0,0.22]
[1759681754493,0.734,4539.8,4539.7,0.61637]
[1759681754693,0.734,4539.8,4539.7,5.82768]
[1759681755694,0.734,4539.8,4539.7,6.04948]
[1759681756294,0.734,4539.8,4539.7,6.36848]
[1759681756489,0.4358,4539.8,4539.7,6.36848]
[1759681756795,0.734,4539.8,4539.7,6.36848]
[1759681757591,3.2078,4539.8,4539.6,0.325]
[1759681757792,0.2982,4539.4,4539.3,0.325]
[1759681757994,1.12611,4539.4,4539.3,5.325]
[1759681760797,1.12611,4539.4,4539.3,5.5496]
[1759681761598,4.33391,4539.4,4539.3,5.5496]
[1759681761801,1.12613,4539.1,4539.0,0.325]
[1759681762110,0.82795,4538.9,4538.8,0.22]
[1759681762299,1.12615,4538.9,4538.8,5.545]
[1759681762496,1.12615,4538.9,4538.8,5.7696]
[1759681762901,1.12615,4538.9,4538.8,5.5496]
[1759681763205,1.12615,4538.9,4538.8,5.7696]
[1759681763506,4.33395,4538.9,4538.8,0.5496]
[1759681765506,4.33395,4538.9,4538.8,0.325]
[1759681766207,4.33395,4538.9,4538.8,0.5496]
[1759681766709,4.33395,4538.9,4538.8,0.325]
[1759681767906,4.33395,4538.9,4538.8,0.5496]
[1759681768809,4.33395,4538.9,4538.8,0.325]
[1759681769804,4.33395,4538.9,4538.8,0.5496]
[1759681770205,4.33395,4538.9,4538.8,0.325]
[1759681770410,4.33395,4538.9,4538.7,0.22]
[1759681770610,4.33395,4538.9,4538.7,0.545]
[1759681770908,0.7297,4538.8,4538.7,0.545]
[1759681771108,0.7297,4538.8,4538.7,0.5496]
[1759681771308,0.7297,4538.8,4538.7,0.325]
[1759681771910,0.7297,4538.8,4538.7,0.5496]
[1759681773212,0.9497,4538.8,4538.7,0.5496]
[1759681777819,1.34616,4538.8,4538.7,0.5496]
[1759681780620,1.1286,4538.3,4538.2,0.75006057]
[1759681780920,4.3364,4538.3,4538.2,0.75006057]
[1759681781121,4.5564,4538.3,4538.2,0.32466057]
[1759681783322,4.5564,4538.3,4538.2,0.52976057]
[1759681783619,4.5564,4538.3,4538.2,0.32466057]
[1759681783922,7.40108902,4538.3,4538.2,0.32466057]
[1759681787528,7.40108902,4538.3,4538.2,0.52976057]
[1759681788030,7.40108902,4538.3,4538.2,0.74216057]
[1759681790523,7.40108902,4538.3,4538.2,5.74216057]
[1759681792031,7.10288902,4538.3,4538.2,5.74216057]
[1759681792231,7.40118902,4538.3,4538.2,5.74216057]
[1759681798537,4.19338902,4538.3,4538.2,5.74216057]
[1759681798835,7.40118902,4538.3,4538.2,5.74216057]
[1759681799336,7.10288902,4538.3,4538.2,5.74216057]
[1759681800026,7.40118902,4538.3,4538.2,5.74216057]
[1759681800736,7.10288902,4538.3,4538.2,5.74216057]
[1759681801237,7.40118902,4538.3,4538.2,5.74216057]
[1759681804529,7.40118902,4538.3,4538.2,0.00186057]
[1759681805134,7.40118902,4538.3,4538.2,0.32806057]
[1759681805629,7.40118902,4538.3,4538.2,0.00186057]
[1759681805936,7.40118902,4538.3,4537.0,0.1324]
[1759681805937,1.10905,4537.7,4537.0,0.1324]
[1759681806141,0.8108,4537.2,4537.1,0.7459]
[1759681806437,4.0186,4537.2,4537.1,0.7459]
[1759681806638,4.0186,4537.2,4537.1,5.7459]
[1759681806844,4.0186,4537.2,4537.1,5.74873866]
[1759681807344,3.622,4537.2,4537.1,5.74873866]
[1759681812148,0.4142,4537.2,4537.1,5.74873866]
[1759681812545,3.4278,4537.4,4537.1,5.42253866]
[1759681812847,3.4278,4537.4,4537.3,0.7459]
[1759681813842,3.842,4537.4,4537.3,5.4197]
[1759681814047,3.6365,4537.4,4537.3,5.7459]
[1759681816849,0.4287,4537.4,4537.3,5.7459]
[1759681818453,0.6342,4537.4,4537.3,5.7459]
[1759681818653,0.9323,4537.4,4537.3,5.7459]
[1759681819652,1.32888,4537.4,4537.3,5.7459]
[1759681820952,1.03078,4537.4,4537.3,5.7459]
[1759681822056,0.82528,4537.4,4537.3,5.7459]
[1759681823858,0.61658,4537.4,4537.3,5.7459]
[1759681825054,0.82798,4537.4,4537.3,5.7459]
[1759681827558,0.61658,4537.4,4537.3,5.7459]
[1759681832768,0.22,4537.4,4537.3,5.7459]
[1759681833161,0.61658,4537.4,4537.3,5.7459]
[1759681833965,0.22,4537.4,4537.3,5.7459]
[1759681834265,0.61658,4537.4,4537.3,5.9659]
[1759681834461,0.39658,4537.4,4537.3,5.9659]
[1759681837465,0.39657,4537.6,4537.5,0.5638]
[1759681837665,0.39657,4537.6,4537.5,0.8894]
[1759681837865,3.20698215,4537.6,4537.5,0.8894]
[1759681840069,3.60434,4537.8,4537.5,5.8894]
[1759681840269,3.60434,4537.8,4537.7,0.7571]
[1759681843175,3.82304,4537.8,4537.7,0.7571]
[1759681846477,4.03024,4537.8,4537.7,0.7571]
[1759681851179,4.32794,4537.8,4537.7,0.7571]
[1759681852180,4.32794,4537.8,4537.7,0.5387]
[1759681852480,4.32794,4537.8,4537.7,0.3256]
[1759681853381,4.32794,4537.8,4537.7,0.5316]
[1759681858181,4.32794,4537.8,4537.7,0.3256]
[1759681859683,4.32794,4537.8,4537.7,0.5316]
[1759681860283,4.03024,4537.8,4537.7,5.7489]
[1759681869290,0.82244,4537.8,4537.7,5.7489]
[1759681869489,4.03024,4537.8,4537.7,5.7489]
[1759681870189,4.32794,4537.8,4537.7,5.7489]
[1759681870489,4.03024,4537.8,4537.7,5.7489]
[1759681881906,3.2078,4537.8,4537.7,5.9689]
[1759681882307,3.2078,4537.8,4537.7,6.36545]
[1759681882812,3.2078,4537.8,4537.7,7.1549301]
[1759681883304,3.2078,4537.8,4537.7,6.36545]
[1759681883703,3.60434,4537.8,4537.7,10.9689]
[1759681884502,3.2078,4537.8,4537.7,11.36545]
[1759681885607,0.39653,4538.0,4537.7,11.36545]
[1759681885808,0.39651,4538.2,4538.1,1.14542]
[1759681886005,0.39651,4538.2,4538.1,1.36542]
[1759681887713,0.39651,4538.2,4538.1,6.36542]
[1759681888511,0.39651,4538.2,4538.1,5.9689]
[1759681888910,0.39651,4538.2,4538.1,6.36542]
[1759681890115,0.3965,4538.4,4538.3,0.414]
[1759681890412,0.3965,4538.4,4538.3,0.9689]
[1759681891013,0.3965,4538.4,4538.3,1.3654]
[1759681892114,0.3965,4538.4,4538.3,0.9689]
[1759681892614,0.3965,4538.4,4538.3,1.3654]
[1759681893016,0.3965,4538.4,4538.3,0.9689]
[1759681893414,1.1221,4538.4,4538.3,0.7637]
[1759681894417,0.824,4538.4,4538.3,0.984]
[1759681894721,0.6202,4538.4,4538.3,0.984]
[1759681897424,0.3965,4538.4,4538.3,0.984]
[1759681900128,0.39648,4538.5,4538.4,0.7326]
[1759681900527,3.82797,4538.7,4538.6,0.7326]
[1759681901124,4.03177,4538.7,4538.6,0.7326]
[1759681901823,1.12207,4538.7,4538.6,0.7326]
[1759681902029,4.32987,4538.7,4538.6,0.7326]
[1759681907731,4.03177,4538.7,4538.6,0.7326]
[1759681908531,4.32997,4538.7,4538.6,0.7326]
[1759681910333,3.4315,4538.7,4538.6,5.7326]
[1759681910536,0.2237,4538.7,4538.6,6.12907]
[1759681910830,0.60495,4538.9,4538.8,0.4444]
[1759681911133,0.60495,4538.9,4538.8,0.7812]
[1759681913138,0.82195,4538.9,4538.8,0.7812]
[1759681915530,0.4255,4538.9,4538.8,0.7812]
[1759681915832,0.69464,4539.1,4538.8,0.7812]
[1759681915833,0.60493,4539.1,4539.0,0.9101]
[1759681917738,0.2085,4539.1,4539.0,5.9101]
[1759681917942,0.60493,4539.1,4539.0,5.9101]
[1759681918747,0.39642,4539.2,4539.0,6.30653]
[1759681919033,3.60421,4539.4,4539.3,0.4444]
[1759681919230,3.60421,4539.4,4539.3,5.7812]
[1759681919428,3.81271,4539.4,4539.3,5.7812]
[1759681920640,4.32791,4539.4,4539.3,5.7812]
[1759681921842,4.32791,4539.4,4539.3,0.3368]
[1759681922042,1.12012,4539.2,4539.1,0.3368]
[1759681923234,0.7237,4539.2,4538.6,0.7894801]
[1759681923437,4.32796,4538.8,4538.7,0.3368]
[1759681928342,4.32796,4538.8,4538.2,1.7906801]
[1759681928343,0.7237,4538.3,4538.2,1.7906801]
[1759681928747,1.1202,4538.3,4538.2,5.7812]
[1759681931945,4.328,4538.3,4538.2,5.7812]
[1759681934157,3.9315,4538.3,4538.2,5.7812]
[1759681934650,4.328,4538.3,4538.2,5.7812]
[1759681935247,0.4255,4538.0,4537.9,1.1262801]
[1759681935552,0.7237,4538.0,4537.9,0.7774]
[1759681935745,0.7237,4538.0,4537.9,5.7774]
[1759681935944,0.7237,4538.0,4537.9,6.0012]
[1759681936144,0.4255,4538.0,4537.9,6.0012]
[1759681939157,0.4255,4538.0,4537.9,5.7812]
[1759681939746,0.60503,4538.0,4537.9,5.7812]
[1759681940552,3.4278,4538.3,4538.0,0.1317]
[1759681940756,4.0377,4538.3,4538.2,0.7477]
[1759681940957,3.6412,4538.3,4538.2,0.7477]
[1759681941548,4.0377,4538.3,4538.2,0.7477]
[1759681946059,4.2505,4538.3,4538.2,0.7477]
[1759681948960,3.2078,4538.3,4538.2,5.7477]
[1759681949261,3.2078,4538.3,4538.2,6.14421]
[1759681949661,3.2078,4538.3,4538.2,5.7477]
[1759681952165,3.6043,4538.3,4538.2,5.7477]
[1759681952464,3.2078,4538.3,4538.2,5.7477]
[1759681952665,3.6043,4538.3,4538.2,5.7477]
[1759681952865,4.0284,4538.3,4538.2,5.7477]
[1759681953066,4.3267,4538.3,4538.2,5.9677]
[1759681962471,4.3267,4538.3,4538.2,0.9677]
[1759681962773,4.0284,4538.3,4538.2,0.9677]
[1759681963271,4.3267,4538.3,4538.2,0.9677]
[1759681964274,4.0284,4538.3,4538.2,0.9677]
[1759681964972,4.3267,4538.3,4538.2,0.9677]
[1759681967373,4.0284,4538.3,4538.2,0.9677]
[1759681971177,4.3263,4538.3,4538.2,0.9677]
[1759681971473,3.6319,4538.3,4538.2,0.9677]
[1759681972072,4.0284,4538.3,4538.2,0.9677]
[1759681975281,4.3263,4538.3,4538.2,0.9677]
[1759681981591,4.3263,4538.3,4538.2,0.7477]
[1759681982392,4.3263,4538.3,4538.2,0.5285]
[1759681984396,0.7099,4537.9,4537.7,0.7894801]
[1759681984598,0.7099,4537.9,4537.6,0.3049]
[1759681984599,1.10645,4537.7,4537.6,0.3049]
[1759681984794,0.80857,4537.5,4537.4,1.0943801]
[1759681984989,1.10647,4537.5,4537.4,5.0]
[1759681985196,0.5037,4537.3,4537.2,0.3049]
[1759681985499,3.9177,4537.3,4537.2,5.3049]
[1759681985699,4.1377,4537.3,4537.1,0.00283866]
[1759681986003,4.1377,4537.3,4535.9,0.17282108]
[1759681986004,0.7099,4536.8,4536.5,0.3049]
[1759681986204,0.39667,4536.4,4536.3,0.3049]
[1759681986397,1.10657,4536.4,4536.3,0.3049]
[1759681987094,0.2979,4536.3,4535.7,0.3049]
[1759681987299,1.10662,4535.8,4535.7,5.3049]
[1759681988004,1.32662,4535.8,4535.7,5.3049]
[1759681988201,1.32662,4535.8,4535.7,5.30759074]
[1759681991101,1.32662,4535.8,4535.7,5.52099074]